fUST/lending_fUST_20240815
["ID","MTS","AMOUNT","RATE_DAILY","PERIOD"]
[334970183,1723692644720,-500.0,0.00013698,2]
[334970184,1723692644730,-622.81,0.00013698,2]
[334970185,1723692644741,-500.0,0.00013698,2]
[334970186,1723692644752,-500.0,0.00013698,2]
[334970187,1723692644761,-500.0,0.00013698,2]
[334970188,1723692644771,-661.43,0.00013698,2]
[334970189,1723692644783,-500.0,0.00013698,2]
[334970190,1723692644794,-628.71,0.00013698,2]
[334970191,1723692644806,-504.50983386,0.00013698,2]
[334970192,1723692644818,-500.0,0.00013698,2]
[334970193,1723692644829,-500.0,0.00013698,2]
[334970194,1723692644838,-500.0,0.00013698,2]
[334970195,1723692644848,-500.0,0.00013698,2]
[334970196,1723692644857,-500.0,0.00013698,2]
[334970197,1723692644866,-500.0,0.00013698,2]
[334970198,1723692644876,-675.39,0.00013698,2]
[334970199,1723692644886,-566.53382755,0.00013698,2]
[334970200,1723692644896,-500.0,0.00013698,2]
[334970201,1723692644907,-500.0,0.00013698,2]
[334970202,1723692644918,-500.0,0.00013698,2]
[334970203,1723692644928,-500.0,0.00013698,2]
[334970204,1723692644939,-502.02334601,0.00013698,2]
[334970205,1723692644949,-500.0,0.00013698,2]
[334970206,1723692644960,-182.58294086,0.00013698,2]
[334970207,1723692644970,-500.0,0.00013698,2]
[334970208,1723692644982,-502.93467359,0.00013698,2]
[334970209,1723692644993,-780.34,0.00013698,2]
[334970210,1723692645004,-500.0,0.00013698,2]
[334970211,1723692645016,-500.0,0.00013698,2]
[334970212,1723692645027,-502.38219924,0.00013698,2]
[334970213,1723692645039,-500.0,0.00013698,2]
[334970214,1723692645049,-500.0,0.00013698,2]
[334970215,1723692645059,-500.0,0.00013698,2]
[334970216,1723692645069,-500.0,0.00013698,2]
[334970217,1723692645079,-500.0,0.00013698,2]
[334970218,1723692645091,-500.0,0.00013698,2]
[334970219,1723692645102,-500.0,0.00013698,2]
[334970220,1723692645111,-503.41374417,0.00013698,2]
[334970221,1723692645120,-500.0,0.00013698,2]
[334970222,1723692645131,-500.0,0.00013698,2]
[334970223,1723692645142,-500.0,0.00013698,2]
[334970224,1723692645153,-500.0,0.00013698,2]
[334970225,1723692645163,-565.75,0.00013698,2]
[334970226,1723692645172,-502.98519465,0.00013698,2]
[334970227,1723692645182,-703.72,0.00013698,2]
[334970228,1723692645195,-492.94612212,0.00013698,2]
[334970229,1723692645205,-1029.92,0.00013698,2]
[334970230,1723692645216,-500.0,0.00013698,2]
[334970231,1723692645226,-500.0,0.00013698,2]
[334970232,1723692645236,-500.0,0.00013698,2]
[334970233,1723692645247,-500.0,0.00013698,2]
[334970234,1723692645258,-500.0,0.00013698,2]
[334970235,1723692645269,-500.0,0.00013698,2]
[334970236,1723692645278,-500.0,0.00013698,2]
[334970237,1723692645288,-513.15,0.00013698,2]
[334970238,1723692645297,-507.12989778,0.00013698,2]
[334970239,1723692645307,-500.0,0.00013698,2]
[334970240,1723692645316,-505.31589928,0.00013698,2]
[334970241,1723692645327,-500.0,0.00013698,2]
[334970242,1723692645340,-500.0,0.00013698,2]
[334970243,1723692645349,-500.0,0.00013698,2]
[334970244,1723692645360,-500.0,0.00013698,2]
[334970245,1723692645370,-500.0,0.00013698,2]
[334970246,1723692645379,-500.0,0.00013698,2]
[334970247,1723692645389,-500.0,0.00013698,2]
[334970248,1723692645398,-500.0,0.00013698,2]
[334970249,1723692645407,-500.0,0.00013698,2]
[334970250,1723692645417,-500.0,0.00013698,2]
[334970251,1723692645426,-485.92967404,0.00013698,2]
[334970252,1723692645436,-500.0,0.00013698,2]
[334970253,1723692645447,-762.75,0.00013698,2]
[334970254,1723692645456,-500.0,0.00013698,2]
[334970255,1723692645466,-500.0,0.00013698,2]
[334970256,1723692645478,-500.0,0.00013698,2]
[334970257,1723692645492,-500.0,0.00013698,2]
[334970258,1723692645504,-500.0,0.00013698,2]
[334970259,1723692645514,-500.0,0.00013698,2]
[334970260,1723692645525,-500.0,0.00013698,2]
[334970261,1723692645537,-1058.26,0.00013698,2]
[334970262,1723692645549,-500.0,0.00013698,2]
[334970263,1723692645559,-500.0,0.00013698,2]
[334970264,1723692645569,-151.0,0.00013698,2]
[334970265,1723692645581,-151.0,0.00013698,2]
[334970266,1723692645591,-151.0,0.00013698,2]
[334970267,1723692645601,-151.0,0.00013698,2]
[334970268,1723692645611,-151.0,0.00013698,2]
[334970269,1723692645622,-151.0,0.00013698,2]
[334970270,1723692645634,-151.0,0.00013698,2]
[334970271,1723692645645,-246.354478,0.00013698,2]
[334970272,1723692645655,-500.0,0.00013698,2]
[334970273,1723692645666,-500.0,0.00013698,2]
[334970274,1723692645678,-551.79,0.00013698,2]
[334970275,1723692645689,-500.0,0.00013698,2]
[334970276,1723692645701,-500.0,0.00013698,2]
[334970277,1723692645711,-259.13471611,0.00013698,2]
[334970278,1723692645719,-500.0,0.00013698,2]
[334970279,1723692645729,-500.0,0.00013698,2]
[334970280,1723692645738,-500.88110826,0.00013698,2]
[334970281,1723692645747,-501.7834299,0.00013698,2]
[334970282,1723692645757,-500.0,0.00013698,2]
[334970283,1723692645766,-500.0,0.00013698,2]
[334970284,1723692645780,-500.96412065,0.00013698,2]
[334970285,1723692645790,-500.0,0.00013698,2]
[334970286,1723692645799,-500.0,0.00013698,2]
[334970287,1723692645810,-500.0,0.00013698,2]
[334970288,1723692645821,-501.08921235,0.00013698,2]
[334970289,1723692645830,-500.0,0.00013698,2]
[334970290,1723692645839,-500.0,0.00013698,2]
[334970291,1723692645849,-500.0,0.00013698,2]
[334970292,1723692645858,-500.0,0.00013698,2]
[334970293,1723692645867,-500.0,0.00013698,2]
[334970294,1723692645878,-500.0,0.00013698,2]
[334970295,1723692645890,-500.0,0.00013698,2]
[334970296,1723692645901,-660.592694,0.00013698,2]
[334970297,1723692645910,-660.592694,0.00013698,2]
[334970298,1723692645920,-79.8400788,0.00013698,2]
[334970329,1723692647025,-191.27,0.00010959,2]
[334970330,1723692647036,-898.15627799,0.00013597,2]
[334970331,1723692647047,-285.5803506,0.00013687,2]
[334970332,1723692647057,-1976.30117921,0.00013687,2]
[334970333,1723692647068,-580.7526152,0.00013698,2]
[334970334,1723692647078,-660.592694,0.00013698,2]
[334970335,1723692647088,-500.0,0.00013698,2]
[334970336,1723692647098,-500.0,0.00013698,2]
[334970337,1723692647110,-660.592694,0.00013698,2]
[334970338,1723692647120,-660.592694,0.00013698,2]
[334970339,1723692647129,-660.592694,0.00013698,2]
[334970340,1723692647139,-660.592694,0.00013698,2]
[334970341,1723692647149,-660.592694,0.00013698,2]
[334970342,1723692647159,-660.592694,0.00013698,2]
[334970343,1723692647168,-660.592694,0.00013698,2]
[334970344,1723692647178,-897.34,0.00013698,2]
[334970345,1723692647188,-500.0,0.00013698,2]
[334970346,1723692647199,-582.6,0.00013698,2]
[334970347,1723692647210,-660.592694,0.00013698,2]
[334970348,1723692647221,-660.592694,0.00013698,2]
[334970349,1723692647231,-660.592694,0.00013698,2]
[334970350,1723692647242,-660.592694,0.00013698,2]
[334970351,1723692647253,-660.592694,0.00013698,2]
[334970352,1723692647262,-660.592694,0.00013698,2]
[334970353,1723692647273,-660.592696,0.00013698,2]
[334970354,1723692647283,-500.0,0.00013698,2]
[334970355,1723692647294,-500.0,0.00013698,2]
[334970356,1723692647305,-500.0,0.00013698,2]
[334970357,1723692647315,-500.0,0.00013698,2]
[334970358,1723692647327,-717.44,0.00013698,2]
[334970359,1723692647337,-720.96,0.00013698,2]
[334970360,1723692647348,-500.0,0.00013698,2]
[334970361,1723692647358,-500.0,0.00013698,2]
[334970362,1723692647369,-500.0,0.00013698,2]
[334970363,1723692647379,-503.13262341,0.00013698,2]
[334970364,1723692647389,-500.0,0.00013698,2]
[334970365,1723692647398,-500.0,0.00013698,2]
[334970366,1723692647409,-500.0,0.00013698,2]
[334970367,1723692647421,-502.05464119,0.00013698,2]
[334970368,1723692647432,-501.7473162,0.00013698,2]
[334970369,1723692647442,-500.0,0.00013698,2]
[334970370,1723692647454,-702.26,0.00013698,2]
[334970371,1723692647466,-799.17,0.00013698,2]
[334970372,1723692647477,-500.0,0.00013698,2]
[334970373,1723692647488,-571.43739277,0.00013698,2]
[334970374,1723692647503,-502.56647527,0.00013698,2]
[334970375,1723692647513,-515.86991798,0.00013698,2]
[334970376,1723692647524,-502.74731752,0.00013698,2]
[334970377,1723692647534,-849.31,0.00013698,2]
[334970378,1723692647543,-500.0,0.00013698,2]
[334970379,1723692647552,-840.67,0.00013698,2]
[334970380,1723692647561,-1090.0,0.00013698,2]
[334970381,1723692647572,-733.9,0.00013698,2]
[334970382,1723692647582,-500.0,0.00013698,2]
[334970383,1723692647593,-502.45890078,0.00013698,2]
[334970384,1723692647603,-268.735338,0.00013698,2]
[334970385,1723692647613,-503.2719872,0.00013698,2]
[334970386,1723692647623,-268.735338,0.00013698,2]
[334970387,1723692647632,-268.735338,0.00013698,2]
[334970388,1723692647641,-528.69,0.00013698,2]
[334970389,1723692647650,-268.735338,0.00013698,2]
[334970390,1723692647659,-268.735338,0.00013698,2]
[334970391,1723692647669,-268.735338,0.00013698,2]
[334970392,1723692647678,-268.735338,0.00013698,2]
[334970393,1723692647689,-268.735338,0.00013698,2]
[334970394,1723692647700,-500.0,0.00013698,2]
[334970395,1723692647711,-268.735338,0.00013698,2]
[334970396,1723692647722,-151.0,0.00013698,2]
[334970397,1723692647732,-102.43170313,0.00013698,2]
[334970402,1723693047225,-1000.0,0.00015,15]
[334970403,1723693082199,-1000.0,0.00017,17]
[334970408,1723693283511,152.66,0.000111,14]
[334970410,1723693832389,-279.13204617,8.52e-05,2]
[334970411,1723693832399,-200.0,8.61e-05,2]
[334970412,1723693832411,-200.0,8.61e-05,2]
[334970413,1723693832422,-200.0,9.98e-05,2]
[334970414,1723693832434,-200.0,9.98e-05,2]
[334970415,1723693832444,-62.00022013,0.00010959,2]
[334970470,1723693838879,-97.38977987,0.00010959,2]
[334970471,1723693838890,-797.0,0.00010959,2]
[334970472,1723693838901,-108.10844856,0.00011099,2]
[334970473,1723693838915,-191.89155144,0.00011099,2]
[334970474,1723693838925,-7781.28224666,0.000111,2]
[334970475,1723693838937,-154.80649189,0.000111,2]
[334970476,1723693838946,-154.80649189,0.000111,2]
[334970477,1723693838957,-1016.20764328,0.000111,2]
[334970478,1723693838968,-1671.09905836,0.000111,2]
[334970479,1723693838978,-8250.5865717,0.00011999,2]
[334970486,1723693840464,-2552.07379962,0.00011999,2]
[334970487,1723693840475,-1020.4728021,0.00012,3]
[334970488,1723693840485,-2263.13478547,0.00012516,2]
[334970489,1723693840495,-1765.54302702,0.00012516,2]
[334970490,1723693840506,-1189.97591678,0.00012629,2]
[334970491,1723693840518,-2305.48844521,0.00012782,3]
[334970492,1723693840528,-288.15834108,0.00012782,2]
[334970493,1723693840539,-933.43837954,0.00012782,2]
[334970494,1723693840549,-153.0,0.00012841,2]
[334970495,1723693840559,-294.8338903,0.00012877,2]
[334970496,1723693840568,-207.41445,0.00012877,2]
[334970497,1723693840578,-153.0,0.00012877,2]
[334970498,1723693840589,-153.0,0.00012877,2]
[334970499,1723693840599,-294.8338903,0.00012877,2]
[334970500,1723693840608,-153.0,0.00012877,2]
[334970501,1723693840618,-207.41445,0.00012877,2]
[334970502,1723693840628,-294.8338903,0.00012877,2]
[334970503,1723693840639,-207.41445,0.00012877,2]
[334970504,1723693840652,-153.0,0.00012877,2]
[334970505,1723693840661,-207.41445,0.00012877,2]
[334970506,1723693840671,-294.8338903,0.00012877,2]
[334970507,1723693840681,-153.0,0.00012877,2]
[334970508,1723693840690,-207.41445,0.00012877,2]
[334970509,1723693840700,-294.8338903,0.00012877,2]
[334970510,1723693840710,-153.0,0.00012877,2]
[334970511,1723693840720,-172.2717214,0.00012877,2]
[334970512,1723693840730,-207.41445,0.00012877,2]
[334970513,1723693840739,-153.0,0.00012877,2]
[334970514,1723693840748,-206.7448427,0.00012877,2]
[334970515,1723693840760,-309.7068249,0.00012886,2]
[334970516,1723693840769,-153.0,0.000129,2]
[334970517,1723693840779,-294.8338903,0.000129,2]
[334970518,1723693840789,-153.0,0.000129,2]
[334970519,1723693840799,-207.41445,0.000129,2]
[334970520,1723693840808,-153.0,0.000129,2]
[334970521,1723693840817,-207.41445,0.000129,2]
[334970522,1723693840826,-153.0,0.000129,2]
[334970523,1723693840836,-294.8338903,0.000129,2]
[334970524,1723693840845,-207.41445,0.000129,2]
[334970525,1723693840857,-309.56059589,0.00012934,2]
[334970526,1723693840867,-1661.0041663,0.00012985,2]
[334970527,1723693840876,-305.974215,0.00012986,2]
[334970528,1723693840886,-199.4619552,0.00012999,2]
[334970529,1723693840895,-306.0,0.00013,2]
[334970530,1723693840904,-153.0,0.00013,2]
[334970531,1723693840923,-294.8338903,0.00013,2]
[334970532,1723693840936,-154.3087709,0.00013,2]
[334970533,1723693840946,-207.41445,0.00013,2]
[334970534,1723693840956,-171.5388811,0.00013,2]
[334970535,1723693840966,-15873.00261127,0.00013,2]
[334970536,1723693840977,-465.03759339,0.00013112,2]
[334970537,1723693840986,-270.33345283,0.00013477,7]
[334970538,1723693840996,-342.47979758,0.00013477,2]
[334970539,1723693841006,-28110.0454865,0.00013578,2]
[334970540,1723693841016,-38580.62715244,0.00013588,2]
[334970541,1723693841027,-859.32581301,0.00013598,2]
[334970542,1723693841037,-336.6717376,0.000136,2]
[334970543,1723693841047,-5324.62888985,0.0001361,2]
[334970544,1723693841057,-150.0,0.00013679,2]
[334970545,1723693841066,-521.0,0.00013679,2]
[334970546,1723693841076,-1413.0,0.00013679,2]
[334970547,1723693841085,-150.0,0.00013679,2]
[334970548,1723693841095,-5914.99072259,0.00013688,2]
[334970549,1723693841106,-257.246944,0.00013688,2]
[334970550,1723693841116,-151.0,0.00013688,2]
[334970551,1723693841125,-257.246944,0.00013688,2]
[334970552,1723693841135,-151.0,0.00013688,2]
[334970553,1723693841144,-197.8168,0.00013688,2]
[334970554,1723693841154,-197.8168,0.00013688,2]
[334970555,1723693841164,-174.326782,0.00013688,2]
[334970556,1723693841173,-174.326782,0.00013688,2]
[334970557,1723693841182,-260.280365,0.00013688,2]
[334970558,1723693841192,-260.280365,0.00013688,2]
[334970559,1723693841202,-183.091908,0.00013688,2]
[334970560,1723693841211,-183.091908,0.00013688,2]
[334970561,1723693841221,-351.269446,0.00013688,2]
[334970562,1723693841230,-351.269446,0.00013688,2]
[334970563,1723693841239,-151.0,0.00013688,2]
[334970564,1723693841249,-151.0,0.00013688,2]
[334970565,1723693841262,-404.919737,0.00013688,2]
[334970566,1723693841273,-404.919737,0.00013688,2]
[334970567,1723693841283,-24890.82925948,0.00013688,2]
[334970584,1723693843526,-150.0,0.00013679,2]
[334970585,1723693843536,-5750.0,0.00013688,2]
[334970595,1723693845648,-9175.17883738,0.00013688,2]
[334970602,1723694443847,314.39,0.00018,31]
[334970603,1723694443962,314.39,0.00018,31]
[334970604,1723694444113,314.39,0.00018,31]
[334970605,1723694444301,314.39,0.00018,31]
[334970606,1723694444382,314.39,0.00018,31]
[334970607,1723694444415,314.39,0.00018,31]
[334970608,1723694444448,314.39,0.00018,31]
[334970609,1723694444494,314.39,0.00018,31]
[334970610,1723694444543,314.39,0.00018,31]
[334970611,1723694444582,314.39,0.00018,31]
[334970612,1723694444629,314.39,0.00018,31]
[334970613,1723694444676,314.39,0.00018,31]
[334970614,1723694444711,314.39,0.00018,31]
[334970615,1723694444746,314.39,0.00018,31]
[334970616,1723694444792,314.39,0.00018,31]
[334970617,1723694444845,314.39,0.00018,31]
[334970618,1723694444880,314.39,0.00018,31]
[334970619,1723694444922,314.39,0.00018,31]
[334970620,1723694444973,314.39,0.00018,31]
[334970621,1723694445008,314.39,0.00018,31]
[334970672,1723695032522,-262.29000004,9.51e-05,2]
[334970675,1723695032536,-11.08336227,9.51e-05,2]
[334970677,1723695032546,-258.16576338,0.00010959,2]
[334970678,1723695032558,-349.04423662,0.00010959,2]
[334970680,1723695032567,-506.01,0.00010959,2]
[334970682,1723695032577,-421.67,0.00010959,2]
[334970684,1723695032587,-288.15834108,0.00011731,2]
[334970686,1723695032597,-63.3169425,0.00011894,2]
[334970688,1723695032609,-246.25180716,0.00011894,2]
[334970690,1723695032619,-290.675504,0.00012986,2]
[334970692,1723695032628,-380.99050564,0.00013174,2]
[334970695,1723695032640,-1669.69707867,0.00013174,2]
[334970697,1723695032651,-718.12699326,0.00013174,2]
[334971077,1723695038911,-310.410008,0.00010959,2]
[334971078,1723695038926,-40.979992,0.00010959,2]
[334971079,1723695038936,-1009.840008,0.00013174,2]
[334971080,1723695038949,-1545.97430428,0.00013174,2]
[334971081,1723695038959,-309.7068249,0.00013333,2]
[334971083,1723695038969,-297.4462891,0.00013482,2]
[334971084,1723695038978,-175.27132614,0.00013496,2]
[334971086,1723695038988,-243.69185787,0.00013496,2]
[334971088,1723695038997,-227.32487816,0.00013497,2]
[334971089,1723695039007,-155.56874795,0.00013497,2]
[334971090,1723695039017,-196.5327387,0.00013497,2]
[334971091,1723695039026,-300.0,0.00013546,2]
[334971092,1723695039035,-528.928623,0.00013547,2]
[334971093,1723695039045,-470.918939,0.00013547,2]
[334971094,1723695039056,-153.0,0.00013589,2]
[334971095,1723695039066,-155.16708104,0.00013596,2]
[334971096,1723695039075,-534.23635652,0.00013597,2]
[334971097,1723695039085,-773.3932317,0.00013598,2]
[334971098,1723695039096,-336.6717376,0.000136,2]
[334971099,1723695039110,-150.0,0.00013679,2]
[334971100,1723695039119,-521.0,0.00013679,2]
[334971101,1723695039128,-1413.0,0.00013679,2]
[334971102,1723695039138,-6949.6989252,0.00013688,2]
[334971103,1723695039147,-82096.34957913,0.00013688,2]
[334971104,1723695039159,-22919.35,0.00013688,2]
[334971105,1723695039172,-6997.83454706,0.00013688,2]
[334971131,1723695040647,-125576.08480381,0.00013688,2]
[334971132,1723695040657,-1976.30117921,0.00013697,2]
[334971133,1723695040668,-2957.49536129,0.00013698,2]
[334971134,1723695040677,-282.69865686,0.00013698,2]
[334971135,1723695040687,-531.88725379,0.00013698,2]
[334971136,1723695040697,-186.28770156,0.00013698,2]
[334971138,1723695040706,-531.88725379,0.00013698,2]
[334971140,1723695040715,-531.88725379,0.00013698,2]
[334971142,1723695040725,-531.88725379,0.00013698,2]
[334971143,1723695040734,-482.09880076,0.00013698,2]
[334971144,1723695040744,-500.8737506,0.00013698,2]
[334971145,1723695040753,-508.90686782,0.00013698,2]
[334971146,1723695040763,-711.13,0.00013698,2]
[334971147,1723695040773,-500.0,0.00013698,2]
[334971148,1723695040784,-500.89855853,0.00013698,2]
[334971149,1723695040796,-507.45236539,0.00013698,2]
[334971150,1723695040807,-500.0,0.00013698,2]
[334971151,1723695040820,-500.0,0.00013698,2]
[334971152,1723695040833,-502.51394671,0.00013698,2]
[334971153,1723695040845,-500.0,0.00013698,2]
[334971154,1723695040857,-793.54,0.00013698,2]
[334971155,1723695040874,-502.18485588,0.00013698,2]
[334971156,1723695040884,-500.0,0.00013698,2]
[334971157,1723695040893,-500.0,0.00013698,2]
[334971158,1723695040902,-500.0,0.00013698,2]
[334971159,1723695040912,-151.0,0.00013698,2]
[334971160,1723695040923,-226.5,0.00013698,2]
[334971161,1723695040933,-500.0,0.00013698,2]
[334971162,1723695040942,-511.82310453,0.00013698,2]
[334971163,1723695040952,-620.76365697,0.00013698,2]
[334971164,1723695040961,-503.86015416,0.00013698,2]
[334971165,1723695040971,-500.0,0.00013698,2]
[334971166,1723695040980,-500.0,0.00013698,2]
[334971167,1723695040989,-500.0,0.00013698,2]
[334971168,1723695040998,-500.0,0.00013698,2]
[334971169,1723695041008,-548.19,0.00013698,2]
[334971170,1723695041017,-513.41584773,0.00013698,2]
[334971171,1723695041026,-500.0,0.00013698,2]
[334971172,1723695041035,-622.98380173,0.00013698,2]
[334971173,1723695041044,-503.3759717,0.00013698,2]
[334971174,1723695041054,-248.70352595,0.00013698,2]
[334971175,1723695041063,-582.81587514,0.00013698,2]
[334971176,1723695041073,-500.0,0.00013698,2]
[334971177,1723695041082,-503.01081338,0.00013698,2]
[334971178,1723695041091,-535.86,0.00013698,2]
[334971179,1723695041100,-503.02909475,0.00013698,2]
[334971180,1723695041113,-504.52257872,0.00013698,2]
[334971181,1723695041122,-500.0,0.00013698,2]
[334971182,1723695041131,-504.44770615,0.00013698,2]
[334971183,1723695041140,-500.0,0.00013698,2]
[334971184,1723695041149,-500.0,0.00013698,2]
[334971185,1723695041159,-500.0,0.00013698,2]
[334971186,1723695041168,-500.0,0.00013698,2]
[334971187,1723695041177,-500.0,0.00013698,2]
[334971188,1723695041187,-500.0,0.00013698,2]
[334971189,1723695041196,-500.0,0.00013698,2]
[334971190,1723695041206,-500.0,0.00013698,2]
[334971191,1723695041215,-500.0,0.00013698,2]
[334971192,1723695041227,-500.0,0.00013698,2]
[334971193,1723695041238,-500.0,0.00013698,2]
[334971194,1723695041247,-500.0,0.00013698,2]
[334971195,1723695041256,-500.0,0.00013698,2]
[334971196,1723695041266,-500.0,0.00013698,2]
[334971197,1723695041277,-500.0,0.00013698,2]
[334971198,1723695041287,-500.0,0.00013698,2]
[334971199,1723695041299,-500.0,0.00013698,2]
[334971200,1723695041310,-647.61,0.00013698,2]
[334971201,1723695041321,-500.0,0.00013698,2]
[334971202,1723695041331,-500.0,0.00013698,2]
[334971203,1723695041341,-500.0,0.00013698,2]
[334971204,1723695041352,-500.0,0.00013698,2]
[334971205,1723695041363,-500.0,0.00013698,2]
[334971206,1723695041373,-500.0,0.00013698,2]
[334971207,1723695041382,-500.0,0.00013698,2]
[334971208,1723695041392,-500.0,0.00013698,2]
[334971209,1723695041401,-500.0,0.00013698,2]
[334971210,1723695041410,-500.0,0.00013698,2]
[334971211,1723695041420,-500.0,0.00013698,2]
[334971212,1723695041430,-500.0,0.00013698,2]
[334971213,1723695041442,-500.0,0.00013698,2]
[334971214,1723695041452,-511.03777809,0.00013698,2]
[334971215,1723695041462,-500.0,0.00013698,2]
[334971216,1723695041471,-500.0,0.00013698,2]
[334971217,1723695041481,-500.0,0.00013698,2]
[334971218,1723695041491,-568.66,0.00013698,2]
[334971219,1723695041500,-500.0,0.00013698,2]
[334971220,1723695041510,-500.0,0.00013698,2]
[334971221,1723695041520,-500.0,0.00013698,2]
[334971222,1723695041529,-321.0618361,0.00013698,2]
[334971223,1723695041539,-500.0,0.00013698,2]
[334971224,1723695041548,-506.36912947,0.00013698,2]
[334971225,1723695041557,-500.0,0.00013698,2]
[334971226,1723695041566,-500.0,0.00013698,2]
[334971227,1723695041576,-500.0,0.00013698,2]
[334971228,1723695041585,-151.0,0.00013698,2]
[334971229,1723695041595,-151.0,0.00013698,2]
[334971230,1723695041604,-151.0,0.00013698,2]
[334971231,1723695041615,-500.0,0.00013698,2]
[334971232,1723695041625,-500.0,0.00013698,2]
[334971233,1723695041634,-500.0,0.00013698,2]
[334971234,1723695041643,-500.0,0.00013698,2]
[334971235,1723695041653,-500.0,0.00013698,2]
[334971236,1723695041663,-500.0,0.00013698,2]
[334971237,1723695041672,-500.0,0.00013698,2]
[334971238,1723695041682,-500.0,0.00013698,2]
[334971239,1723695041692,-597.54,0.00013698,2]
[334971240,1723695041701,-627.92,0.00013698,2]
[334971241,1723695041710,-813.2,0.00013698,2]
[334971242,1723695041720,-500.0,0.00013698,2]
[334971243,1723695041729,-503.26899572,0.00013698,2]
[334971244,1723695041740,-235.99929315,0.00013698,2]
[334971245,1723695041751,-503.09986289,0.00013698,2]
[334971246,1723695041762,-721.04,0.00013698,2]
[334971247,1723695041771,-500.0,0.00013698,2]
[334971248,1723695041781,-500.0,0.00013698,2]
[334971249,1723695041790,-692.4,0.00013698,2]
[334971250,1723695041800,-500.0,0.00013698,2]
[334971251,1723695041810,-504.21856882,0.00013698,2]
[334971252,1723695041821,-500.0,0.00013698,2]
[334971253,1723695041831,-500.0,0.00013698,2]
[334971254,1723695041843,-500.0,0.00013698,2]
[334971255,1723695041856,-500.0,0.00013698,2]
[334971256,1723695041867,-500.0,0.00013698,2]
[334971257,1723695041878,-500.0,0.00013698,2]
[334971258,1723695041890,-340.91857252,0.00013698,2]
[334971259,1723695041901,-1104.32,0.00013698,2]
[334971260,1723695041911,-500.0,0.00013698,2]
[334971261,1723695041921,-533.44,0.00013698,2]
[334971262,1723695041931,-563.85,0.00013698,2]
[334971263,1723695041942,-500.0,0.00013698,2]
[334971264,1723695041954,-500.0,0.00013698,2]
[334971265,1723695041965,-500.0,0.00013698,2]
[334971266,1723695041974,-500.0,0.00013698,2]
[334971267,1723695041983,-554.46,0.00013698,2]
[334971268,1723695041993,-500.0,0.00013698,2]
[334971269,1723695042002,-500.0,0.00013698,2]
[334971270,1723695042012,-528.8,0.00013698,2]
[334971271,1723695042022,-500.0,0.00013698,2]
[334971272,1723695042033,-500.0,0.00013698,2]
[334971273,1723695042044,-500.0,0.00013698,2]
[334971274,1723695042055,-500.0,0.00013698,2]
[334971275,1723695042064,-501.7834299,0.00013698,2]
[334971276,1723695042074,-500.0,0.00013698,2]
[334971277,1723695042086,-500.0,0.00013698,2]
[334971278,1723695042096,-388.20946063,0.00013698,2]
[334971279,1723695042108,-500.0,0.00013698,2]
[334971280,1723695042119,-500.0,0.00013698,2]
[334971281,1723695042129,-500.0,0.00013698,2]
[334971282,1723695042140,-500.0,0.00013698,2]
[334971283,1723695042150,-735.64,0.00013698,2]
[334971284,1723695042160,-500.0,0.00013698,2]
[334971285,1723695042170,-500.0,0.00013698,2]